[Event "Late-Titled-Tuesday-Blitz-April-30-2024"]
[Site "Chess.com"]
[Date "2024.04.30"]
[Round "7"]
[White "1g60-1"]
[Black "scandalgod"]
[Result "0-1"]
[WhiteElo "2429"]
[BlackElo "2499"]
[TimeControl "180+1"]
[EndTime "15:19:56 PDT"]
[Termination "scandalgod won by resignation"]

1. e4 {[%clk 0:03:00.9]} 1... e5 {[%clk 0:02:59.6]} 2. Nf3 {[%clk 0:03:01.3]}
2... Nc6 {[%clk 0:02:59]} 3. Bb5 {[%clk 0:03:01.5]} 3... a6 {[%clk 0:02:57.8]}
4. Ba4 {[%clk 0:03:01.8]} 4... d6 {[%clk 0:02:58.2]} 5. c3 {[%clk 0:03:01.6]}
5... f5 {[%clk 0:02:57]} 6. exf5 {[%clk 0:02:46.3]} 6... Bxf5 {[%clk 0:02:55.4]}
7. d3 {[%clk 0:02:24]} 7... Be7 {[%clk 0:02:53]} 8. a3 {[%clk 0:02:17.5]} 8...
Nf6 {[%clk 0:02:49.6]} 9. Bb3 {[%clk 0:02:17.6]} 9... d5 {[%clk 0:02:37.6]} 10.
Qe2 {[%clk 0:02:12.9]} 10... Qd6 {[%clk 0:02:36.9]} 11. Nbd2 {[%clk 0:01:58.7]}
11... O-O-O {[%clk 0:02:32.9]} 12. Bc2 {[%clk 0:01:52.4]} 12... Rhe8 {[%clk
0:02:27.3]} 13. O-O {[%clk 0:01:50.8]} 13... Nh5 {[%clk 0:02:22.4]} 14. g3
{[%clk 0:01:08.7]} 14... Bh3 {[%clk 0:02:15.6]} 15. Re1 {[%clk 0:01:05.9]} 15...
Qg6 {[%clk 0:02:12.8]} 16. Nf1 {[%clk 0:01:01.3]} 16... Bf6 {[%clk 0:02:05]} 17.
b4 {[%clk 0:00:50.6]} 17... Bg4 {[%clk 0:02:01.3]} 18. Ne3 {[%clk 0:00:40.1]}
18... Nf4 {[%clk 0:01:35.3]} 19. Qd1 {[%clk 0:00:38.9]} 19... Nh3+ {[%clk
0:01:31.8]} 20. Kg2 {[%clk 0:00:39.1]} 20... e4 {[%clk 0:01:06.9]} 21. Nxg4
{[%clk 0:00:37.1]} 21... Qxg4 {[%clk 0:01:02]} 22. Ng1 {[%clk 0:00:29.6]} 22...
Qxd1 {[%clk 0:00:43]} 23. Rxd1 {[%clk 0:00:29.6]} 23... Nxg1 {[%clk 0:00:40.4]}
24. Kxg1 {[%clk 0:00:30.2]} 24... Bxc3 {[%clk 0:00:38.1]} 25. Rb1 {[%clk
0:00:30.1]} 25... exd3 {[%clk 0:00:33.1]} 26. Bxd3 {[%clk 0:00:31]} 26... Ne5
{[%clk 0:00:31.6]} 27. Bf1 {[%clk 0:00:19.5]} 27... d4 {[%clk 0:00:29.2]} 28.
Bf4 {[%clk 0:00:18]} 28... Ng6 {[%clk 0:00:21.5]} 29. Bg5 {[%clk 0:00:15.7]}
29... Rd6 {[%clk 0:00:20.7]} 30. Bc1 {[%clk 0:00:14.2]} 30... Ne5 {[%clk
0:00:17.7]} 31. h4 {[%clk 0:00:12.3]} 31... d3 {[%clk 0:00:15.2]} 32. Bf4 {[%clk
0:00:10.4]} 32... d2 {[%clk 0:00:14.7]} 33. Kg2 {[%clk 0:00:09.6]} 33... h6
{[%clk 0:00:09.5]} 34. Rb3 {[%clk 0:00:09.4]} 34... Bd4 {[%clk 0:00:04.6]} 35.
Rxd2 {[%clk 0:00:09]} 35... g5 {[%clk 0:00:03.9]} 36. hxg5 {[%clk 0:00:08.7]}
36... hxg5 {[%clk 0:00:04.4]} 37. Bxg5 {[%clk 0:00:08.4]} 37... Nc6 {[%clk
0:00:01.2]} 38. Bf4 {[%clk 0:00:08.5]} 38... Rd7 {[%clk 0:00:01.3]} 39. Rbd3
{[%clk 0:00:08.8]} 39... Red8 {[%clk 0:00:01]} 40. Bg5 {[%clk 0:00:09.3]} 40...
Kb8 {[%clk 0:00:01.3]} 41. Bxd8 {[%clk 0:00:09.1]} 41... Rxd8 {[%clk 0:00:02.2]}
42. Kg1 {[%clk 0:00:09.6]} 42... Rf8 {[%clk 0:00:02.2]} 43. Rxd4 {[%clk
0:00:09.6]} 43... Nxd4 {[%clk 0:00:02.9]} 44. Rxd4 {[%clk 0:00:10.5]} 44... Ka7
{[%clk 0:00:03.2]} 45. Bg2 {[%clk 0:00:10.6]} 45... Kb6 {[%clk 0:00:04.1]} 46.
Rd7 {[%clk 0:00:10.5]} 46... c6 {[%clk 0:00:05]} 47. Rd3 {[%clk 0:00:09.4]}
47... a5 {[%clk 0:00:05.5]} 48. bxa5+ {[%clk 0:00:09.4]} 48... Kxa5 {[%clk
0:00:05.5]} 49. Rf3 {[%clk 0:00:10.3]} 49... Rg8 {[%clk 0:00:05.3]} 50. Kh2
{[%clk 0:00:10.5]} 50... c5 {[%clk 0:00:05.2]} 51. Kh3 {[%clk 0:00:10.9]} 51...
c4 {[%clk 0:00:05.5]} 52. g4 {[%clk 0:00:11.2]} 52... b5 {[%clk 0:00:05.8]} 53.
Rf5 {[%clk 0:00:10.3]} 53... Ka4 {[%clk 0:00:05.8]} 54. Rc5 {[%clk 0:00:10.3]}
54... Rf8 {[%clk 0:00:03.9]} 55. Kg3 {[%clk 0:00:10.1]} 55... Rb8 {[%clk
0:00:03.8]} 56. Bc6 {[%clk 0:00:09.4]} 56... Kxa3 {[%clk 0:00:02.9]} 57. Rxb5
{[%clk 0:00:09.5]} 57... c3 {[%clk 0:00:02.9]} 58. Rxb8 {[%clk 0:00:09.1]} 58...
c2 {[%clk 0:00:00.9]} 59. Ra8+ {[%clk 0:00:09.3]} 59... Kb2 {[%clk 0:00:00.2]}
60. Rb8+ {[%clk 0:00:09.1]} 60... Ka3 {[%clk 0:00:00.6]} 61. Ra8+ {[%clk
0:00:07.8]} 61... Kb2 {[%clk 0:00:01]} 62. Rc8 {[%clk 0:00:07.4]} 62... c1=Q
{[%clk 0:00:00.8]} 63. Bf3 {[%clk 0:00:08.3]} 63... Qd2 {[%clk 0:00:00.8]} 64.
Rb8+ {[%clk 0:00:08]} 64... Kc3 {[%clk 0:00:00.8]} 65. Re8 {[%clk 0:00:08.9]}
65... Kb4 {[%clk 0:00:01.5]} 66. Re3 {[%clk 0:00:08.9]} 66... Qd6+ {[%clk
0:00:02]} 67. Kg2 {[%clk 0:00:08.8]} 67... Kc5 {[%clk 0:00:02.8]} 68. Re4 {[%clk
0:00:08.3]} 68... Qd2 {[%clk 0:00:02.5]} 69. Kg3 {[%clk 0:00:08.4]} 69... Kd6
{[%clk 0:00:02.9]} 70. Kg2 {[%clk 0:00:07]} 70... Kc5 {[%clk 0:00:03.5]} 71. Re6
{[%clk 0:00:07.1]} 71... Qd4 {[%clk 0:00:03.6]} 72. Re4 {[%clk 0:00:08]} 72...
Qd6 {[%clk 0:00:03.4]} 73. g5 {[%clk 0:00:07.7]} 73... Qg6 {[%clk 0:00:02.8]}
74. Rg4 {[%clk 0:00:08.5]} 74... Kd6 {[%clk 0:00:02]} 75. Kg3 {[%clk 0:00:08.9]}
75... Ke5 {[%clk 0:00:02.4]} 76. Bg2 {[%clk 0:00:09.1]} 76... Qg7 {[%clk
0:00:02.1]} 77. f4+ {[%clk 0:00:09.4]} 77... Kf5 {[%clk 0:00:02.1]} 78. Bh3
{[%clk 0:00:09.3]} 78... Qc3+ {[%clk 0:00:01.8]} 79. Kh4 {[%clk 0:00:09.8]}
79... Qh8+ {[%clk 0:00:01]} 80. Kg3 {[%clk 0:00:10.3]} 80... Qc3+ {[%clk
0:00:01.1]} 81. Kh2 {[%clk 0:00:10.9]} 81... Ke4 {[%clk 0:00:01.7]} 82. Rg3
{[%clk 0:00:10.1]} 82... Qd2+ {[%clk 0:00:02.2]} 83. Bg2+ {[%clk 0:00:10.1]}
83... Kxf4 {[%clk 0:00:02.3]} 84. Rh3 {[%clk 0:00:10.4]} 84... Kxg5 {[%clk
0:00:02.6]} 85. Rg3+ {[%clk 0:00:10.8]} 85... Kf4 {[%clk 0:00:03.1]} 86. Rf3+
{[%clk 0:00:11]} 86... Kg4 {[%clk 0:00:03.1]} 87. Rg3+ {[%clk 0:00:11.3]} 87...
Kf4 {[%clk 0:00:03.5]} 88. Rf3+ {[%clk 0:00:11.9]} 88... Ke5 {[%clk 0:00:03.6]}
89. Rg3 {[%clk 0:00:12.1]} 89... Qh6+ {[%clk 0:00:03.8]} 90. Rh3 {[%clk
0:00:12.4]} 90... Qf4+ {[%clk 0:00:04.2]} 91. Rg3 {[%clk 0:00:12.3]} 91... Kf5
{[%clk 0:00:04.6]} 92. Bh3+ {[%clk 0:00:12.1]} 92... Ke5 {[%clk 0:00:04.5]} 93.
Bg2 {[%clk 0:00:12.4]} 93... Kd4 {[%clk 0:00:04.7]} 94. Kh3 {[%clk 0:00:12.2]}
94... Qf5+ {[%clk 0:00:04.7]} 95. Kh2 {[%clk 0:00:12.5]} 95... Qh5+ {[%clk
0:00:04]} 96. Rh3 {[%clk 0:00:12.9]} 96... Qe5+ {[%clk 0:00:04.6]} 97. Rg3
{[%clk 0:00:13.3]} 97... Qf4 {[%clk 0:00:04.3]} 98. Kh3 {[%clk 0:00:13.2]} 98...
Qh6+ {[%clk 0:00:03.2]} 99. Kg4 {[%clk 0:00:12.6]} 99... Ke5 {[%clk 0:00:03.3]}
100. Kf3 {[%clk 0:00:12.2]} 100... Qf4+ {[%clk 0:00:02.9]} 0-1

[Event "Late-Titled-Tuesday-Blitz-April-30-2024"]
[Site "Chess.com"]
[Date "2024.04.30"]
[Round "8"]
[White "chessforthesun"]
[Black "maurovargas01"]
[Result "1-0"]
[WhiteElo "2602"]
[BlackElo "1948"]
[TimeControl "180+1"]
[EndTime "15:22:37 PDT"]
[Termination "chessforthesun won by resignation"]

1. e4 {[%clk 0:03:00.9]} 1... c5 {[%clk 0:02:52.4]} 2. Nf3 {[%clk 0:03:01]} 2...
d6 {[%clk 0:02:50.7]} 3. d4 {[%clk 0:03:01.6]} 3... cxd4 {[%clk 0:02:49.5]} 4.
Nxd4 {[%clk 0:03:02.5]} 4... Nf6 {[%clk 0:02:49.6]} 5. Nc3 {[%clk 0:03:03.2]}
5... Nc6 {[%clk 0:02:49.7]} 6. Bg5 {[%clk 0:03:03.3]} 6... g6 {[%clk 0:02:48.9]}
7. Bxf6 {[%clk 0:02:58.5]} 7... exf6 {[%clk 0:02:48.6]} 8. Bc4 {[%clk
0:02:56.3]} 8... Bg7 {[%clk 0:02:46.8]} 9. O-O {[%clk 0:02:54.4]} 9... Ne5
{[%clk 0:02:39.8]} 10. Bb5+ {[%clk 0:02:52.4]} 10... Bd7 {[%clk 0:02:36.3]} 11.
Bxd7+ {[%clk 0:02:40.1]} 11... Qxd7 {[%clk 0:02:35]} 12. Ndb5 {[%clk 0:02:40.4]}
12... Bf8 {[%clk 0:02:22.8]} 13. Nd5 {[%clk 0:02:38.9]} 13... f5 {[%clk
0:02:17.2]} 14. Nf6+ {[%clk 0:02:37.8]} 1-0

[Event "Late-Titled-Tuesday-Blitz-April-30-2024"]
[Site "Chess.com"]
[Date "2024.04.30"]
[Round "8"]
[White "Darkbluelord"]
[Black "MeisterJabo"]
[Result "0-1"]
[WhiteElo "2201"]
[BlackElo "2459"]
[TimeControl "180+1"]
[EndTime "15:23:58 PDT"]
[Termination "MeisterJabo won by resignation"]

1. e4 {[%clk 0:03:00.9]} 1... e5 {[%clk 0:02:58.1]} 2. Nf3 {[%clk 0:03:00.1]}
2... Nf6 {[%clk 0:02:58.1]} 3. Nxe5 {[%clk 0:02:59.5]} 3... d6 {[%clk
0:02:57.4]} 4. Nxf7 {[%clk 0:02:59.4]} 4... Kxf7 {[%clk 0:02:57.2]} 5. d4 {[%clk
0:03:00.3]} 5... c5 {[%clk 0:02:55.7]} 6. Bc4+ {[%clk 0:03:00]} 6... d5 {[%clk
0:02:55.5]} 7. exd5 {[%clk 0:02:52.9]} 7... Bd6 {[%clk 0:02:54.5]} 8. dxc5
{[%clk 0:02:36.4]} 8... Re8+ {[%clk 0:02:54.1]} 9. Be3 {[%clk 0:02:36.5]} 9...
Bxc5 {[%clk 0:02:53]} 10. d6+ {[%clk 0:02:36.9]} 10... Be6 {[%clk 0:02:52.7]}
11. Bxe6+ {[%clk 0:02:11.1]} 11... Rxe6 {[%clk 0:02:51]} 12. O-O {[%clk
0:02:00]} 12... Qxd6 {[%clk 0:02:48.1]} 13. Bxc5 {[%clk 0:01:58]} 13... Qxc5
{[%clk 0:02:49]} 14. Nc3 {[%clk 0:01:49.3]} 14... Nc6 {[%clk 0:02:47.8]} 15. Qf3
{[%clk 0:01:44]} 15... Rae8 {[%clk 0:02:42]} 16. h3 {[%clk 0:01:42.2]} 16... Kg8
{[%clk 0:02:40.5]} 17. Na4 {[%clk 0:01:41.5]} 17... Qb4 {[%clk 0:02:37.1]} 18.
b3 {[%clk 0:01:35.4]} 18... Ne4 {[%clk 0:02:31.5]} 19. Rfe1 {[%clk 0:01:21.2]}
19... Nd2 {[%clk 0:02:20.7]} 0-1

[Event "Late-Titled-Tuesday-Blitz-April-30-2024"]
[Site "Chess.com"]
[Date "2024.04.30"]
[Round "8"]
[White "GoltsevDmitry2000"]
[Black "CrushingKings"]
[Result "1-0"]
[WhiteElo "2818"]
[BlackElo "2618"]
[TimeControl "180+1"]
[EndTime "15:24:05 PDT"]
[Termination "GoltsevDmitry2000 won by resignation"]

1. e4 {[%clk 0:02:57.9]} 1... g6 {[%clk 0:03:00.9]} 2. h4 {[%clk 0:02:57.5]}
2... Bg7 {[%clk 0:03:01.2]} 3. h5 {[%clk 0:02:58.4]} 3... c5 {[%clk 0:03:01.8]}
4. d3 {[%clk 0:02:58.4]} 4... Nc6 {[%clk 0:03:01.2]} 5. h6 {[%clk 0:02:58.8]}
5... Bf6 {[%clk 0:03:01.5]} 6. Nc3 {[%clk 0:02:58.8]} 6... e6 {[%clk 0:03:01.5]}
7. Nf3 {[%clk 0:02:57.9]} 7... d5 {[%clk 0:03:00.6]} 8. exd5 {[%clk 0:02:58.8]}
8... exd5 {[%clk 0:03:00.8]} 9. Bf4 {[%clk 0:02:59]} 9... Nge7 {[%clk
0:03:00.5]} 10. Be2 {[%clk 0:02:55.3]} 10... O-O {[%clk 0:03:00.3]} 11. O-O
{[%clk 0:02:55.7]} 11... Nf5 {[%clk 0:02:57.6]} 12. Qd2 {[%clk 0:02:53.2]} 12...
Re8 {[%clk 0:02:55.8]} 13. Rfe1 {[%clk 0:02:52.9]} 13... Nfd4 {[%clk 0:02:36.9]}
14. Nxd4 {[%clk 0:02:50.7]} 14... Nxd4 {[%clk 0:02:37.1]} 15. Bf1 {[%clk
0:02:50.3]} 15... Be6 {[%clk 0:02:28.9]} 16. Be5 {[%clk 0:02:34.9]} 16... Bxe5
{[%clk 0:02:27.4]} 17. Rxe5 {[%clk 0:02:35.8]} 17... Nf5 {[%clk 0:02:27.7]} 18.
Rae1 {[%clk 0:02:33.9]} 18... Qd7 {[%clk 0:02:17.5]} 19. Qg5 {[%clk 0:02:27.8]}
19... Qd8 {[%clk 0:02:17.1]} 20. Qf4 {[%clk 0:02:20.5]} 20... Qd7 {[%clk
0:01:51.6]} 21. g4 {[%clk 0:02:19.9]} 21... f6 {[%clk 0:01:40.1]} 22. Rxe6
{[%clk 0:02:07.4]} 22... Rxe6 {[%clk 0:01:39.8]} 23. Rxe6 {[%clk 0:02:07.9]}
23... Qxe6 {[%clk 0:01:40.3]} 24. gxf5 {[%clk 0:02:08.4]} 24... gxf5 {[%clk
0:01:40.1]} 25. Qg3+ {[%clk 0:02:04]} 1-0

[Event "Late-Titled-Tuesday-Blitz-April-30-2024"]
[Site "Chess.com"]
[Date "2024.04.30"]
[Round "8"]
[White "merinasian"]
[Black "Pig-filth"]
[Result "1-0"]
[WhiteElo "2602"]
[BlackElo "2314"]
[TimeControl "180+1"]
[EndTime "15:24:13 PDT"]
[Termination "merinasian won by checkmate"]

1. d4 {[%clk 0:03:00.9]} 1... Nc6 {[%clk 0:02:59.2]} 2. Nf3 {[%clk 0:03:01.3]}
2... d5 {[%clk 0:02:59.1]} 3. g3 {[%clk 0:03:01.7]} 3... Nf6 {[%clk 0:02:59.1]}
4. Bg2 {[%clk 0:03:02.2]} 4... Bg4 {[%clk 0:02:59.8]} 5. O-O {[%clk 0:03:02.2]}
5... Qd7 {[%clk 0:03:00.4]} 6. c4 {[%clk 0:03:02.7]} 6... e6 {[%clk 0:02:58.6]}
7. cxd5 {[%clk 0:03:01.5]} 7... exd5 {[%clk 0:02:59.5]} 8. Nc3 {[%clk
0:03:01.2]} 8... a6 {[%clk 0:02:46.2]} 9. Ne5 {[%clk 0:02:58]} 9... Nxe5 {[%clk
0:02:36]} 10. dxe5 {[%clk 0:02:57.8]} 10... Ne4 {[%clk 0:02:36.4]} 11. Nxd5
{[%clk 0:02:51.1]} 11... Nc5 {[%clk 0:02:09.7]} 12. b4 {[%clk 0:02:38.1]} 12...
Ne6 {[%clk 0:01:59.9]} 13. a3 {[%clk 0:02:37.4]} 13... Rd8 {[%clk 0:01:49.3]}
14. Bg5 {[%clk 0:02:32.7]} 14... Nxg5 {[%clk 0:01:45.3]} 15. Qc2 {[%clk
0:02:24.4]} 15... Ne6 {[%clk 0:01:29.2]} 16. Rfd1 {[%clk 0:02:19.6]} 16... Qc6
{[%clk 0:01:28.1]} 17. Nf6+ {[%clk 0:02:18.6]} 17... gxf6 {[%clk 0:01:28]} 18.
Bxc6+ {[%clk 0:02:18.5]} 18... bxc6 {[%clk 0:01:28.9]} 19. Qxc6+ {[%clk
0:02:17.9]} 19... Ke7 {[%clk 0:01:29.8]} 20. Rxd8 {[%clk 0:02:15]} 20... Kxd8
{[%clk 0:01:25.2]} 21. Rd1+ {[%clk 0:02:12.4]} 21... Ke7 {[%clk 0:01:22.8]} 22.
Qd7# {[%clk 0:02:11.2]} 1-0

[Event "Late-Titled-Tuesday-Blitz-April-30-2024"]
[Site "Chess.com"]
[Date "2024.04.30"]
[Round "8"]
[White "kalxandria"]
[Black "vanyakuba"]
[Result "0-1"]
[WhiteElo "2230"]
[BlackElo "2407"]
[TimeControl "180+1"]
[EndTime "15:24:25 PDT"]
[Termination "vanyakuba won by resignation"]

1. e4 {[%clk 0:03:00.9]} 1... d5 {[%clk 0:03:00]} 2. exd5 {[%clk 0:03:00.2]}
2... Qxd5 {[%clk 0:03:00.9]} 3. Nc3 {[%clk 0:02:59.8]} 3... Qa5 {[%clk
0:03:00.9]} 4. d4 {[%clk 0:02:58.8]} 4... Nf6 {[%clk 0:03:01.1]} 5. Nf3 {[%clk
0:02:57.7]} 5... Bg4 {[%clk 0:03:01.6]} 6. Bc4 {[%clk 0:02:49.8]} 6... Nc6
{[%clk 0:03:00.6]} 7. h3 {[%clk 0:02:41.3]} 7... Bh5 {[%clk 0:02:59.1]} 8. g4
{[%clk 0:02:40.5]} 8... Bg6 {[%clk 0:02:58.8]} 9. Bd2 {[%clk 0:02:27.9]} 9...
O-O-O {[%clk 0:02:57.1]} 10. Nb5 {[%clk 0:01:49.5]} 10... Qb6 {[%clk 0:02:54.2]}
11. c3 {[%clk 0:01:47.6]} 11... a6 {[%clk 0:02:42.3]} 12. Na3 {[%clk 0:01:45]}
12... Qxb2 {[%clk 0:02:41.6]} 13. Qc1 {[%clk 0:01:13.4]} 13... Qxc1+ {[%clk
0:02:35.4]} 14. Rxc1 {[%clk 0:01:11.8]} 14... Be4 {[%clk 0:02:33.1]} 15. Ke2
{[%clk 0:01:07.2]} 15... e5 {[%clk 0:02:30.4]} 16. Bxf7 {[%clk 0:00:48.5]} 16...
Bxa3 {[%clk 0:02:26.5]} 0-1

[Event "Late-Titled-Tuesday-Blitz-April-30-2024"]
[Site "Chess.com"]
[Date "2024.04.30"]
[Round "8"]
[White "WPWPWP-2015"]
[Black "rhwr"]
[Result "1-0"]
[WhiteElo "2472"]
[BlackElo "2272"]
[TimeControl "180+1"]
[EndTime "15:24:26 PDT"]
[Termination "WPWPWP-2015 won by resignation"]

1. e4 {[%clk 0:03:00.9]} 1... c5 {[%clk 0:02:59.8]} 2. Nf3 {[%clk 0:03:00.6]}
2... d6 {[%clk 0:03:00.1]} 3. d4 {[%clk 0:03:00]} 3... cxd4 {[%clk 0:03:01]} 4.
Nxd4 {[%clk 0:03:00.4]} 4... Nf6 {[%clk 0:03:01.4]} 5. Nc3 {[%clk 0:03:00.2]}
5... e5 {[%clk 0:03:01.9]} 6. Nb3 {[%clk 0:02:51.2]} 6... Be6 {[%clk 0:03:01.9]}
7. Bg5 {[%clk 0:02:48.3]} 7... Be7 {[%clk 0:03:02.1]} 8. Bb5+ {[%clk 0:02:46.7]}
8... Nc6 {[%clk 0:02:57.1]} 9. O-O {[%clk 0:02:44.8]} 9... O-O {[%clk 0:02:56]}
10. Re1 {[%clk 0:02:42]} 10... h6 {[%clk 0:02:53.8]} 11. Bh4 {[%clk 0:02:38.4]}
11... a6 {[%clk 0:02:51.6]} 12. Bf1 {[%clk 0:02:35.3]} 12... b5 {[%clk
0:02:43.7]} 13. a3 {[%clk 0:02:34.8]} 13... Rc8 {[%clk 0:02:40.8]} 14. h3 {[%clk
0:02:34.1]} 14... Bxb3 {[%clk 0:02:32.1]} 15. cxb3 {[%clk 0:02:33.4]} 15... Nd4
{[%clk 0:02:32.4]} 16. Bxf6 {[%clk 0:02:25.2]} 16... Bxf6 {[%clk 0:02:31.1]} 17.
Bd3 {[%clk 0:02:24.7]} 17... Bg5 {[%clk 0:02:30.6]} 18. Nd5 {[%clk 0:02:24]}
18... Rc6 {[%clk 0:02:05.1]} 19. b4 {[%clk 0:02:22.4]} 19... Qd7 {[%clk
0:01:59.6]} 20. Kh2 {[%clk 0:02:18.4]} 20... Rfc8 {[%clk 0:01:57.7]} 21. a4
{[%clk 0:02:14.2]} 21... Rc1 {[%clk 0:01:51.7]} 22. Qg4 {[%clk 0:02:07]} 22...
Qxg4 {[%clk 0:01:48.3]} 23. hxg4 {[%clk 0:02:06.7]} 23... Rxe1 {[%clk
0:01:47.1]} 24. Rxe1 {[%clk 0:02:05.5]} 24... bxa4 {[%clk 0:01:44.4]} 25. Ra1
{[%clk 0:01:57.4]} 25... Bc1 {[%clk 0:01:36.8]} 26. Ne7+ {[%clk 0:01:56.2]} 1-0

[Event "Late-Titled-Tuesday-Blitz-April-30-2024"]
[Site "Chess.com"]
[Date "2024.04.30"]
[Round "8"]
[White "jefferyx"]
[Black "BogdanDeac"]
[Result "1/2-1/2"]
[WhiteElo "3115"]
[BlackElo "3085"]
[TimeControl "180+1"]
[EndTime "15:24:35 PDT"]
[Termination "Game drawn by agreement"]

1. e4 {[%clk 0:03:00.9]} 1... e5 {[%clk 0:02:59.7]} 2. Nf3 {[%clk 0:03:01]} 2...
Nc6 {[%clk 0:03:00.3]} 3. Nc3 {[%clk 0:03:01.2]} 3... Nf6 {[%clk 0:03:00.6]} 4.
d4 {[%clk 0:03:01.8]} 4... exd4 {[%clk 0:03:01.2]} 5. Nxd4 {[%clk 0:03:02.7]}
5... Bb4 {[%clk 0:03:01.5]} 6. Nxc6 {[%clk 0:03:03.2]} 6... bxc6 {[%clk
0:03:02.4]} 7. Bd3 {[%clk 0:03:03.5]} 7... O-O {[%clk 0:03:03]} 8. O-O {[%clk
0:03:03.6]} 8... d5 {[%clk 0:03:03.7]} 9. exd5 {[%clk 0:03:04.5]} 9... Bg4
{[%clk 0:03:04]} 10. f3 {[%clk 0:03:05.2]} 10... Bh5 {[%clk 0:03:04.2]} 11. dxc6
{[%clk 0:03:05.9]} 11... Qd4+ {[%clk 0:03:04.1]} 12. Kh1 {[%clk 0:03:06.6]}
12... Bxc3 {[%clk 0:03:04.4]} 13. bxc3 {[%clk 0:03:07.5]} 13... Qxc3 {[%clk
0:03:05.2]} 14. Rb1 {[%clk 0:03:08.2]} 14... Bg6 {[%clk 0:03:05.7]} 15. Rb3
{[%clk 0:03:08.7]} 15... Qxc6 {[%clk 0:03:05.8]} 16. Bb2 {[%clk 0:03:09.2]}
16... Rfd8 {[%clk 0:02:44.2]} 17. Qa1 {[%clk 0:03:08.6]} 17... Rab8 {[%clk
0:02:43.3]} 18. Rc1 {[%clk 0:02:59.4]} 18... Qe6 {[%clk 0:01:55.6]} 19. Bxf6
{[%clk 0:02:31.7]} 19... Qxf6 {[%clk 0:01:28.1]} 20. Qxf6 {[%clk 0:02:31.9]}
20... gxf6 {[%clk 0:01:29]} 21. Kg1 {[%clk 0:02:26.8]} 21... Rxb3 {[%clk
0:01:21.2]} 22. axb3 {[%clk 0:02:27.7]} 22... Bxd3 {[%clk 0:01:21.6]} 23. cxd3
{[%clk 0:02:28.6]} 23... Rxd3 {[%clk 0:01:21.2]} 24. Rxc7 {[%clk 0:02:28.8]}
24... Rxb3 {[%clk 0:01:21.2]} 25. Rxa7 {[%clk 0:02:29.3]} 25... Kg7 {[%clk
0:01:21.6]} 26. Ra2 {[%clk 0:02:27.9]} 26... f5 {[%clk 0:01:21.7]} 27. Kf2
{[%clk 0:02:27.4]} 27... f6 {[%clk 0:01:21.6]} 28. g3 {[%clk 0:02:26.8]} 28...
Kg6 {[%clk 0:01:21.2]} 29. Re2 {[%clk 0:02:24.6]} 29... h5 {[%clk 0:01:21.7]}
30. Kg2 {[%clk 0:02:24.7]} 30... Rb4 {[%clk 0:01:21.7]} 31. Rd2 {[%clk
0:02:15.4]} 31... h4 {[%clk 0:01:21.1]} 32. f4 {[%clk 0:02:10.5]} 32... hxg3
{[%clk 0:01:20.8]} 33. hxg3 {[%clk 0:02:10.6]} 33... Rb3 {[%clk 0:01:19.9]}
1/2-1/2

[Event "Late-Titled-Tuesday-Blitz-April-30-2024"]
[Site "Chess.com"]
[Date "2024.04.30"]
[Round "8"]
[White "bascheyaro"]
[Black "ozates"]
[Result "1-0"]
[WhiteElo "2851"]
[BlackElo "2617"]
[TimeControl "180+1"]
[EndTime "15:24:40 PDT"]
[Termination "bascheyaro won by resignation"]

1. d4 {[%clk 0:03:00.9]} 1... Nf6 {[%clk 0:02:50.3]} 2. Nf3 {[%clk 0:03:01]}
2... d5 {[%clk 0:02:49.4]} 3. c4 {[%clk 0:03:01.3]} 3... c6 {[%clk 0:02:49.7]}
4. Nc3 {[%clk 0:03:01.8]} 4... e6 {[%clk 0:02:50.1]} 5. Bg5 {[%clk 0:03:02]}
5... Nbd7 {[%clk 0:02:50.7]} 6. e3 {[%clk 0:03:02.3]} 6... Qa5 {[%clk
0:02:50.7]} 7. Bxf6 {[%clk 0:03:02.4]} 7... Nxf6 {[%clk 0:02:50.4]} 8. Qb3
{[%clk 0:03:02.7]} 8... b6 {[%clk 0:02:42.9]} 9. Rc1 {[%clk 0:03:02.4]} 9... Ba6
{[%clk 0:02:42]} 10. Ne5 {[%clk 0:02:53]} 10... Rc8 {[%clk 0:02:37.6]} 11. cxd5
{[%clk 0:02:01.6]} 11... cxd5 {[%clk 0:02:31.3]} 12. Bxa6 {[%clk 0:01:54.2]}
12... Qxa6 {[%clk 0:02:31]} 13. Kd2 {[%clk 0:01:48.5]} 13... Bd6 {[%clk
0:02:21.1]} 14. Qb5+ {[%clk 0:01:48.2]} 14... Qxb5 {[%clk 0:02:16.5]} 15. Nxb5
{[%clk 0:01:49.1]} 15... Bb4+ {[%clk 0:02:06]} 16. Ke2 {[%clk 0:01:38.8]} 16...
Rxc1 {[%clk 0:01:48.4]} 17. Rxc1 {[%clk 0:01:38.2]} 17... O-O {[%clk 0:01:49]}
18. Nxa7 {[%clk 0:01:37.9]} 18... Ra8 {[%clk 0:01:45.5]} 19. Rc8+ {[%clk
0:01:37]} 19... Rxc8 {[%clk 0:01:45.3]} 20. Nxc8 {[%clk 0:01:37.9]} 20... b5
{[%clk 0:01:34.7]} 21. Na7 {[%clk 0:01:28.4]} 1-0

[Event "Late-Titled-Tuesday-Blitz-April-30-2024"]
[Site "Chess.com"]
[Date "2024.04.30"]
[Round "8"]
[White "Slovineanu"]
[Black "Carlitus2004"]
[Result "1-0"]
[WhiteElo "2470"]
[BlackElo "2476"]
[TimeControl "180+1"]
[EndTime "15:24:58 PDT"]
[Termination "Slovineanu won by resignation"]

1. d4 {[%clk 0:03:00.9]} 1... d6 {[%clk 0:02:59.1]} 2. e4 {[%clk 0:02:59.7]}
2... Nf6 {[%clk 0:02:59]} 3. Nc3 {[%clk 0:03:00]} 3... g6 {[%clk 0:02:57.8]} 4.
Nf3 {[%clk 0:02:59.2]} 4... Bg7 {[%clk 0:02:58]} 5. Be3 {[%clk 0:02:59.4]} 5...
O-O {[%clk 0:02:58.6]} 6. Qd2 {[%clk 0:02:59.8]} 6... a6 {[%clk 0:02:59.2]} 7.
Bh6 {[%clk 0:02:58.1]} 7... b5 {[%clk 0:02:59.3]} 8. h4 {[%clk 0:02:57]} 8... b4
{[%clk 0:02:58.4]} 9. Nd5 {[%clk 0:02:45.2]} 9... Nxe4 {[%clk 0:02:37.8]} 10.
Qe3 {[%clk 0:02:44.9]} 10... Bxh6 {[%clk 0:02:10.5]} 11. Qxh6 {[%clk 0:02:44.1]}
11... f6 {[%clk 0:02:06.4]} 12. Bd3 {[%clk 0:02:38.5]} 12... Bf5 {[%clk
0:00:55]} 13. g4 {[%clk 0:02:18.9]} 13... Nxf2 {[%clk 0:00:51.3]} 14. gxf5
{[%clk 0:02:06.3]} 14... Nxd3+ {[%clk 0:00:50.4]} 15. cxd3 {[%clk 0:02:06]}
15... e6 {[%clk 0:00:38.1]} 16. fxg6 {[%clk 0:02:00.8]} 1-0